bitfinex-derivatives/quotes_SOLF0:USTF0_20250528
["timestamp","ask_amount","ask_price","bid_price","bid_amount"]
[1748428864396,5.7526,173.77,173.75,0.03796236]
[1748428864588,0.03679559,173.79,173.75,0.03796236]
[1748428864894,5.7529,173.76,173.75,0.03796236]
[1748428866188,0.03679559,173.79,173.75,0.03796236]
[1748428866594,0.03679559,173.79,173.75,5.79096236]
[1748428866794,5.7524,173.78,173.75,5.79096236]
[1748428867188,0.03679559,173.79,173.75,0.03796236]
[1748428868690,5.7529,173.76,173.75,0.03796236]
[1748428869991,5.7527,173.77,173.75,0.03796236]
[1748428871194,5.7529,173.76,173.75,0.03796236]
[1748428872298,5.7527,173.77,173.75,0.03796236]
[1748428872502,5.7527,173.77,173.75,5.79116236]
[1748428875301,5.7527,173.77,173.75,0.03796236]
[1748428876509,5.7529,173.76,173.75,0.03796236]
[1748428876707,0.03679559,173.79,173.75,0.03796236]
[1748428877208,5.7526,173.77,173.75,0.03796236]
[1748428878012,5.7524,173.78,173.75,5.79116236]
[1748428878805,0.03679559,173.79,173.75,0.03796236]
[1748428879308,0.03679559,173.79,173.75,29.47796236]
[1748428880008,0.03679559,173.79,173.78,5.7522]
[1748428885515,0.03679559,173.79,173.77,5.7524]
[1748428887319,5.78869559,173.79,173.76,5.7527]
[1748428887615,5.78869559,173.79,173.75,29.47796236]
[1748428887817,5.78869559,173.79,173.76,5.7527]
[1748428888616,0.03679559,173.79,173.77,5.7525]
[1748428890019,5.78869559,173.79,173.77,5.7525]
[1748428892720,0.03679559,173.79,173.77,5.7525]
[1748428893124,5.78889559,173.79,173.76,5.7527]
[1748428896724,5.78889559,173.79,173.77,5.7524]
[1748428898019,0.03679559,173.79,173.77,10.04053324]
[1748428898520,5.78869559,173.79,173.77,10.04053324]
[1748428899028,5.78869559,173.79,173.77,4.28813324]
[1748428900926,5.78869559,173.79,173.77,10.04063324]
[1748428901525,0.03679559,173.79,173.77,10.04063324]
[1748428901728,0.03679559,173.79,173.78,5.7522]
[1748428901927,1.8923,173.85,173.77,4.28813324]
[1748428902229,5.7508,173.83,173.8,5.7514]
[1748428902932,5.79207444,173.83,173.8,5.792845]
[1748428904729,5.7511,173.82,173.8,0.041445]
[1748428904925,0.04127444,173.83,173.8,0.041445]
[1748428905528,5.79187444,173.83,173.8,5.792845]
[1748428907125,5.79187444,173.83,173.81,5.7511]
[1748428908829,0.04127444,173.83,173.82,5.7509]
[1748428909427,0.04127444,173.83,173.81,10.03913324]
[1748428910928,0.04127444,173.83,173.82,4.28813324]
[1748428911335,0.04127444,173.83,173.82,10.03903324]
[1748428915030,0.04127444,173.83,173.82,4.28813324]
[1748428915729,0.04127444,173.83,173.82,10.03903324]
[1748428923141,0.04127444,173.83,173.8,0.041445]
[1748428923440,5.7511,173.82,173.8,4.32957824]
[1748428928840,0.04127444,173.83,173.8,4.32957824]
[1748428929738,5.7509,173.82,173.8,4.32957824]
[1748428930041,0.04127444,173.83,173.8,4.32957824]
[1748428930739,0.04127444,173.83,173.8,0.041445]
[1748428931633,5.7512,173.81,173.8,0.041445]
[1748428932647,5.751,173.82,173.8,0.041445]
[1748428932939,5.751,173.82,173.8,5.792945]
[1748428933745,5.751,173.82,173.8,0.041445]
[1748428935340,5.79197444,173.83,173.8,4.32957824]
[1748428936145,5.79197444,173.83,173.8,10.08087824]
[1748428936847,5.79197444,173.83,173.81,5.7512]
[1748428937146,0.04127444,173.83,173.82,5.7509]
[1748428939139,0.04127444,173.83,173.81,5.7511]
[1748428941251,0.04127444,173.83,173.82,10.03903324]
[1748428941652,0.04127444,173.83,173.82,4.28813324]
[1748428942951,0.04127444,173.83,173.82,10.03903324]
[1748428943145,0.04127444,173.83,173.82,39.41903324]
[1748428945643,0.04127444,173.83,173.82,29.38]
[1748428945845,0.04127444,173.83,173.8,0.041445]
[1748428946250,5.7512,173.81,173.8,0.041445]
[1748428946551,0.04127444,173.83,173.8,0.041445]
[1748428946741,5.79197444,173.83,173.8,0.041445]
[1748428947541,0.04127444,173.83,173.8,0.041445]
[1748428948948,0.04127444,173.83,173.8,5.792845]
[1748428948949,5.79187444,173.83,173.8,5.792845]
[1748428951954,0.04127444,173.83,173.81,5.751]
[1748428952457,0.04127444,173.83,173.81,5.7512]
[1748428957370,0.04127444,173.83,173.82,5.7509]
[1748428959967,0.04127444,173.83,173.8,0.041445]
[1748428961072,5.7512,173.81,173.8,0.041445]
[1748428986781,5.7527,173.77,173.75,29.34]
[1748428987182,5.7527,173.77,173.73,2.0178]
[1748428987883,0.03741406,173.77,173.75,5.7529]
[1748428989087,0.03741406,173.77,173.76,5.7528]
[1748428992488,0.03741406,173.77,173.73,31.3746525]
[1748428992489,0.03741406,173.77,173.75,5.753]
[1748428992888,0.03741406,173.77,173.73,31.3746525]
[1748428993090,0.03741406,173.77,173.75,5.7529]
[1748428995294,0.03741406,173.77,173.76,5.7528]
[1748428995494,0.03741406,173.77,173.73,35.66304953]
[1748428996398,0.03741406,173.77,173.76,5.7528]
[1748429006907,0.03741406,173.77,173.75,10.04139703]
[1748429009326,0.03741406,173.77,173.75,5.753]
[1748429011307,0.03741406,173.77,173.74,4.28839703]
[1748429011709,0.03741406,173.77,173.75,5.753]
[1748429012006,0.03741406,173.77,173.74,4.28839703]
[1748429012007,5.79001406,173.77,173.74,4.28839703]
[1748429012213,5.79001406,173.77,173.74,10.04169703]
[1748429014307,5.79001406,173.77,173.75,5.7531]
[1748429017616,5.7529,173.76,173.74,122.14179703]
[1748429018416,5.7529,173.76,173.74,10.04179703]
[1748429018616,5.7532,173.75,173.73,147.1905525]
[1748429018816,0.03741406,173.77,173.73,29.3568525]
[1748429019017,5.7534,173.75,173.73,29.3568525]
[1748429022321,5.7534,173.75,173.73,35.1106525]
[1748429022521,5.7534,173.75,173.73,29.3568525]
[1748429024617,5.7534,173.75,173.73,35.1106525]
[1748429025310,5.7534,173.75,173.73,29.3568525]
[1748429027024,5.7534,173.75,173.73,35.1105525]
[1748429027221,5.753,173.76,173.73,35.1105525]
[1748429027529,4.32581109,173.77,173.73,29.3568525]
[1748429027718,4.32581109,173.77,173.74,5.7533]
[1748429027917,10.07851109,173.77,173.74,5.7533]
[1748429028122,5.79011406,173.77,173.74,5.7533]
[1748429028422,0.03741406,173.77,173.75,5.7531]
[1748429028624,0.03741406,173.77,173.74,4.28839703]
[1748429029318,0.03741406,173.77,173.76,5.7528]
[1748429031827,5.78991406,173.77,173.75,5.7531]
[1748429032326,5.78991406,173.77,173.74,10.04179703]
[1748429035129,5.78991406,173.77,173.75,5.7531]
[1748429035529,0.03741406,173.77,173.75,5.7531]
[1748429037027,5.78991406,173.77,173.75,5.7531]
[1748429038526,0.03741406,173.77,173.75,5.7531]
[1748429039933,5.78991406,173.77,173.75,5.7531]
[1748429048640,0.03741406,173.77,173.73,33.64524953]
[1748429049038,0.03741406,173.77,173.76,5.7529]
[1748429049235,31.2142,173.83,173.75,4.28839703]
[1748429049638,5.752,173.79,173.76,5.7526]
[1748429050342,5.79287036,173.79,173.76,5.79425147]
[1748429050738,0.04087036,173.79,173.77,5.7525]
[1748429050937,0.04087036,173.79,173.76,0.04165147]
[1748429051946,5.7522,173.78,173.76,5.79435147]
[1748429053041,5.79287036,173.79,173.76,5.79435147]
[1748429055740,0.04087036,173.79,173.76,0.04165147]
[1748429056339,0.04087036,173.79,173.77,5.7523]
[1748429057948,5.79287036,173.79,173.77,5.7523]
[1748429070052,0.04087036,173.79,173.78,5.7522]
[1748429070649,0.04087036,173.79,173.77,5.7524]
[1748429072148,5.79287036,173.79,173.76,5.79435147]
[1748429072955,5.79287036,173.79,173.77,5.7525]
[1748429076162,0.04087036,173.79,173.77,5.7525]
[1748429077759,5.79297036,173.79,173.77,5.7525]
[1748429078362,0.04087036,173.79,173.77,5.7525]
[1748429078866,5.79297036,173.79,173.76,5.79435147]
[1748429080463,5.79297036,173.79,173.77,5.7524]
[1748429083468,5.79297036,173.79,173.76,5.79435147]
[1748429083969,0.04087036,173.79,173.77,5.7523]
[1748429085070,5.79277036,173.79,173.77,5.7523]
[1748429086674,5.79277036,173.79,173.76,5.79435147]
[1748429088773,5.79277036,173.79,173.77,5.7525]
[1748429098673,5.7522,173.78,173.76,5.79425147]
[1748429099278,0.04087036,173.79,173.76,0.04165147]
[1748429099580,5.7522,173.78,173.76,0.04165147]
[1748429100681,5.7522,173.78,173.76,5.79425147]
[1748429101380,5.7525,173.77,173.76,0.04165147]
[1748429110285,4.32926739,173.79,173.76,0.04165147]
[1748429110475,0.04087036,173.79,173.76,0.04165147]
[1748429110881,5.7525,173.77,173.76,0.04165147]
[1748429114386,10.04089703,173.77,173.76,0.04165147]
[1748429129309,10.04089703,173.77,173.76,5.147e-05]
[1748429129907,5.7524,173.78,173.76,5.147e-05]
[1748429131710,5.7525,173.77,173.76,5.147e-05]
[1748429136711,5.7524,173.78,173.76,5.147e-05]
[1748429137110,5.7525,173.77,173.76,5.147e-05]
[1748429137615,5.79287036,173.79,173.76,5.75285147]
[1748429137818,0.04087036,173.79,173.76,5.75285147]
[1748429138822,5.79297036,173.79,173.76,5.75285147]
[1748429139315,5.79297036,173.79,173.77,5.7525]
[1748429139517,0.04087036,173.79,173.76,4.2884485]
[1748429139917,0.04087036,173.79,173.78,10.04059703]
[1748429145416,5.7503,173.84,173.81,5.7511]
[1748429145616,5.7506,173.83,173.81,4.28839703]
[1748429146013,5.7501,173.85,173.82,5.7508]
[1748429146216,5.7501,173.85,173.83,4.28839703]
[1748429148121,0.04239972,173.86,173.84,5.75]
[1748429148517,0.04239972,173.86,173.83,4.28839703]
[1748429148720,5.79199972,173.86,173.84,5.7502]
[1748429148926,5.79199972,173.86,173.83,4.28839703]
[1748429149427,5.7502,173.84,173.82,0.03961279]
[1748429155128,5.7502,173.84,173.82,5.79051279]
[1748429157027,5.75,173.85,173.82,5.79051279]
[1748429157929,5.79209972,173.86,173.83,5.7505]
[1748429159633,5.7499,173.85,173.83,5.7505]
[1748429160631,5.79209972,173.86,173.83,5.7505]
[1748429161135,5.7501,173.85,173.82,5.79031279]
[1748429161634,5.7501,173.85,173.82,0.03961279]
[1748429161830,0.04239972,173.86,173.84,4.28839703]
[1748429162035,0.04239972,173.86,173.84,33.28839703]
[1748429162238,0.04239972,173.86,173.85,5.7499]
[1748429170129,5.7483,173.9,173.88,5.7489]
[1748429170330,5.7483,173.9,173.88,10.03729703]
[1748429171138,5.7486,173.89,173.88,4.28839703]
[1748429171738,5.7483,173.9,173.88,4.28839703]
[1748429172341,5.7483,173.9,173.87,5.79033158]
[1748429172536,5.7486,173.89,173.88,4.28839703]
[1748429172736,0.04240093,173.91,173.88,4.28839703]
[1748429173741,5.7486,173.89,173.88,4.28839703]
[1748429176341,5.7484,173.9,173.88,4.28839703]
[1748429177538,5.79050093,173.91,173.88,10.03699703]
[1748429177745,5.79050093,173.91,173.88,4.28839703]
[1748429179540,5.79050093,173.91,173.88,10.03719703]
[1748429179946,5.7483,173.9,173.88,10.03719703]
[1748429180338,5.7483,173.9,173.88,4.28839703]
[1748429181145,5.7483,173.9,173.88,10.03699703]
[1748429182946,5.79040093,173.91,173.88,4.28839703]
[1748429183549,5.79040093,173.91,173.88,10.03709703]
[1748429184449,5.7482,173.9,173.88,10.03709703]
[1748429184651,0.04240093,173.91,173.88,4.28839703]
[1748429184860,0.04240093,173.91,173.9,4.28839703]
[1748429186346,5.79030093,173.91,173.9,4.28839703]
[1748429187946,0.04240093,173.91,173.9,4.28839703]
[1748429189553,0.04240093,173.91,173.9,10.03659703]
[1748429189755,0.04240093,173.91,173.9,4.28839703]
[1748429189953,6.19059703,173.96,173.92,5.7473]
[1748429189954,1.9022,173.96,173.92,5.7473]
[1748429190251,3.9407,173.97,173.93,4.28839703]
[1748429190457,5.7468,173.95,173.93,4.28839703]
[1748429190754,5.7468,173.95,173.93,10.03559703]
[1748429192652,0.03705162,173.96,173.93,10.03559703]
[1748429192653,0.03705162,173.96,173.93,4.28839703]
[1748429193854,5.7468,173.95,173.93,4.28839703]
[1748429196359,5.7468,173.95,173.93,10.03559703]
[1748429196557,5.7468,173.95,173.94,4.28839703]
[1748429199160,0.03705162,173.96,173.94,4.28839703]
[1748429199663,0.03705162,173.96,173.92,33.26912538]
[1748429200159,5.7471,173.94,173.92,33.26912538]
[1748429200355,5.7471,173.94,173.92,39.01662538]
[1748429200955,5.7467,173.95,173.92,39.01662538]
[1748429205263,5.747,173.94,173.92,39.01662538]
[1748429206159,5.7467,173.95,173.92,39.01662538]
[1748429206552,5.7467,173.95,173.93,5.7472]
[1748429217164,5.7469,173.94,173.92,39.01652538]
[1748429219059,0.03705162,173.96,173.92,33.26912538]
[1748429219272,0.03705162,173.96,173.94,4.28839703]
[1748429219661,0.03705162,173.96,173.95,5.7466]
[1748429223769,0.03705162,173.96,173.94,10.03519703]
[1748429223969,0.03705162,173.96,173.94,4.28839703]
[1748429224469,5.7466,173.95,173.94,4.28839703]
[1748429225565,5.7466,173.95,173.93,5.7472]
[1748429225774,5.7466,173.95,173.93,4.28839703]
[1748429226271,5.7466,173.95,173.93,10.03549703]
[1748429227973,5.78345162,173.96,173.94,5.7469]
[1748429228871,5.78345162,173.96,173.93,10.03549703]
[1748429230173,5.78345162,173.96,173.94,5.7468]
[1748429230567,5.78345162,173.96,173.93,4.28839703]
[1748429230775,5.78345162,173.96,173.93,10.03539703]
[1748429231671,5.78345162,173.96,173.94,5.7468]
[1748429234275,5.78345162,173.96,173.93,10.03549703]
[1748429234573,5.78345162,173.96,173.93,4.28839703]
[1748429234773,5.78345162,173.96,173.94,5.7468]
[1748429235976,5.78345162,173.96,173.93,10.03549703]
[1748429236473,5.78345162,173.96,173.94,5.7469]
[1748429238271,0.03705162,173.96,173.95,10.03499703]
[1748429243175,28.94,174.02,173.95,4.28839703]
[1748429243472,4.28839703,174.04,173.97,4.28839703]
[1748429243880,5.7453,173.99,173.97,10.03429703]
[1748429245279,5.7453,173.99,173.97,4.28839703]
[1748429245480,5.7451,174.0,173.97,4.28839703]
[1748429246878,5.7451,174.0,173.97,10.03409703]
[1748429248575,5.7451,174.0,173.98,5.7456]
[1748429251276,5.7451,174.0,173.97,10.03419703]
[1748429253977,5.7451,174.0,173.98,5.7455]
[1748429257175,5.7447,174.01,173.98,5.7455]
[1748429259476,4.28839703,174.04,173.98,5.7455]
[1748429260185,5.7448,174.01,173.98,5.7455]
[1748429262281,5.7448,174.01,173.99,4.28839703]
[1748429262785,5.7448,174.01,173.99,10.03359703]
[1748429262988,5.7448,174.01,173.99,4.28839703]
[1748429264689,5.7449,174.0,173.99,4.28839703]
[1748429265187,28.9,174.05,173.99,4.28839703]
[1748429265390,5.7448,174.01,174.0,0.03894301]
[1748429270986,5.7444,174.02,174.0,0.03894301]
[1748429271188,28.9,174.05,174.0,0.03894301]
[1748429271591,4.28839703,174.04,174.0,0.03894301]
[1748429271994,4.28839703,174.02,173.9,3.8284]
[1748429272294,4.28839703,174.02,173.95,4.28839703]
[1748429272489,4.28839703,174.02,173.95,33.12839703]
[1748429273089,5.7454,173.99,173.97,5.78888657]
[1748429273495,5.7454,173.99,173.97,10.0772836]
[1748429274193,5.78200268,174.0,173.98,5.7456]
[1748429274790,0.03700268,174.0,173.98,5.7456]
[1748429275001,0.03700268,174.0,173.99,5.7453]
[1748429275398,0.03700268,174.0,173.99,10.03369703]
[1748429278005,0.03700268,174.0,173.99,4.28839703]
[1748429278498,0.03700268,174.0,173.98,4.28839703]
[1748429278698,5.78210268,174.0,173.98,4.28839703]
[1748429279504,0.03700268,174.0,173.98,10.03389703]
[1748429280312,5.78200268,174.0,173.98,10.03389703]
[1748429280715,0.03700268,174.0,173.99,5.7453]
[1748429281507,0.03700268,174.0,173.98,10.03389703]
[1748429282810,5.78200268,174.0,173.98,10.03389703]
[1748429284717,5.78200268,174.0,173.98,4.28839703]
[1748429284909,5.7453,173.99,173.98,4.28839703]
[1748429285109,5.7453,173.99,173.97,0.04298657]
[1748429285614,5.7453,173.99,173.97,5.78888657]
[1748429286615,5.7456,173.98,173.97,0.04298657]
[1748429287017,0.03700268,174.0,173.98,5.7454]
[1748429287216,0.03700268,174.0,173.99,4.2770103]
[1748429287619,0.03700268,174.0,173.99,10.0223103]
[1748429290524,4.0688,174.07,174.03,5.7439]
[1748429291414,5.7435,174.05,174.02,5.7442]
[1748429291617,5.763833,174.05,174.02,5.78262199]
[1748429293715,0.020333,174.05,174.02,0.03842199]
[1748429293914,0.020333,174.05,174.04,4.27593561]
[1748429295119,0.020333,174.05,174.04,10.01953561]
[1748429295420,28.8,174.12,174.04,4.27593561]
[1748429295614,5.7422,174.09,174.06,10.01863561]
[1748429295812,4.27593561,174.1,174.02,33.07593561]
[1748429296211,5.7433,174.05,174.04,0.03942583]
[1748429309433,6.0094,174.11,174.04,0.03942583]
[1748429309434,4.27593561,174.1,174.04,0.03942583]
[1748429310129,5.7431,174.06,174.04,0.03942583]
[1748429310831,5.7433,174.05,174.04,0.03942583]
[1748429312337,5.7431,174.06,174.04,0.03942583]
[1748429313539,6.0094,174.11,174.05,4.27593561]
[1748429313540,2.014,174.11,174.05,4.27593561]
[1748429313930,5.7418,174.1,174.06,5.7427]
[1748429314135,2.014,174.11,174.04,4.31536144]
[1748429315038,5.7424,174.08,174.05,5.7432]
[1748429315239,2.014,174.11,174.04,4.31536144]
[1748429315737,2.014,174.11,174.06,4.27593561]
[1748429316035,5.7421,174.09,174.06,10.01873561]
[1748429316337,2.014,174.11,174.06,4.27593561]
[1748429317333,5.7422,174.09,174.06,10.01883561]
[1748429319532,2.014,174.11,174.06,10.01883561]
[1748429319533,5.7423,174.08,174.07,4.27593561]
[1748429323037,5.7421,174.09,174.07,4.27593561]
[1748429323846,5.7423,174.08,174.07,4.27593561]
[1748429324341,2.014,174.11,174.06,4.27593561]
[1748429324739,33.05593561,174.14,174.06,4.27593561]
[1748429324939,33.05593561,174.14,174.08,0.04016497]
[1748429325839,5.742,174.09,174.08,0.04016497]
[1748429338261,5.7418,174.1,174.08,0.04016497]
[1748429338661,33.05593561,174.14,174.08,5.78236497]
[1748429339061,5.7416,174.11,174.08,5.78236497]
[1748429339258,33.05593561,174.14,174.08,5.78236497]
[1748429340064,5.7418,174.1,174.08,0.04016497]
[1748429343259,5.7418,174.1,174.08,5.78246497]
[1748429343971,5.7419,174.09,174.08,0.04016497]
[1748429351374,5.7418,174.1,174.08,0.04016497]
[1748429355674,5.7419,174.09,174.08,0.04016497]
[1748429356074,33.05593561,174.14,174.08,0.04016497]
[1748429356479,28.78,174.14,174.08,4.31610058]
[1748429356779,32.97593561,174.17,174.1,5.7414]
[1748429356980,32.97593561,174.17,174.12,0.03972069]
[1748429357377,5.7406,174.13,174.12,0.03972069]
[1748429359287,5.7404,174.14,174.12,0.03972069]
[1748429360986,5.7404,174.14,174.12,5.78062069]
[1748429363685,34.5824,174.19,174.12,0.03972069]
[1748429364079,5.7398,174.16,174.13,5.7404]
[1748429364275,34.5824,174.19,174.12,0.03972069]
[1748429364479,496.02,174.21,174.14,5.7401]
[1748429364675,32.97593561,174.21,174.16,0.04397655]
[1748429365683,5.7395,174.17,174.16,0.04397655]
[1748429366488,28.7,174.21,174.16,4.31991216]
[1748429366887,32.97593561,174.23,174.16,4.31991216]
[1748429367091,4.27593561,174.23,174.16,4.31991216]
[1748429367585,5.7393,174.17,174.16,0.04397655]
[1748429372295,5.7393,174.17,174.16,7.655e-05]
[1748429393109,10.01523561,174.17,174.16,7.655e-05]
[1748429398311,5.7393,174.17,174.16,7.655e-05]
[1748429417021,0.04006433,174.18,174.16,7.655e-05]
[1748429417422,0.04006433,174.18,174.16,5.73967655]
[1748429417828,0.04006433,174.18,174.16,7.655e-05]
[1748429418022,5.77936433,174.18,174.16,7.655e-05]
[1748429418326,0.04006433,174.18,174.16,7.655e-05]
[1748429418531,0.04006433,174.18,174.16,5.73957655]
[1748429419029,0.04006433,174.18,174.16,7.655e-05]
[1748429419527,5.77926433,174.18,174.16,7.655e-05]
[1748429420528,5.7393,174.17,174.16,7.655e-05]
[1748429420929,0.04006433,174.18,174.16,7.655e-05]
[1748429421130,5.77926433,174.18,174.16,7.655e-05]
[1748429422037,0.04006433,174.18,174.16,7.655e-05]
[1748429422631,0.04006433,174.18,174.17,5.7393]
[1748429423128,0.04006433,174.18,174.16,5.73967655]
[1748429423338,0.04006433,174.18,174.16,7.655e-05]
[1748429423829,3.8368,174.28,174.17,4.27593561]
[1748429424233,5.7376,174.23,174.2,5.7383]
[1748429424535,5.7376,174.23,174.17,10.43953561]
[1748429424734,5.7377,174.22,174.19,10.01443561]
[1748429424931,4.27593561,174.25,174.19,10.05069905]
[1748429425130,3.8368,174.28,174.19,10.05069905]
[1748429425436,3.8368,174.28,174.21,5.7377]
[1748429425637,3.8368,174.28,174.23,0.04036561]
[1748429425825,5.7364,174.26,174.23,4.31630122]
[1748429426030,5.7364,174.26,174.23,0.04036561]
[1748429426335,5.737,174.24,174.23,0.04036561]
[1748429426526,4.27593561,174.27,174.23,0.04036561]
[1748429426923,10.01203561,174.27,174.23,0.04036561]
[1748429427326,10.01203561,174.27,174.23,5.77766561]
[1748429427524,5.7364,174.26,174.23,5.77766561]
[1748429427730,4.27593561,174.27,174.23,5.77766561]
[1748429427927,28.62,174.3,174.24,5.7367]
[1748429428130,4.27593561,174.29,174.24,5.7367]
[1748429428342,4.27593561,174.29,174.23,0.04036561]
[1748429428634,4.27593561,174.25,174.23,0.04036561]
[1748429429033,5.737,174.24,174.23,0.04036561]
[1748429429229,3.8547,174.29,174.23,0.04036561]
[1748429429434,4.27593561,174.28,174.23,0.04036561]
[1748429429936,5.7369,174.25,174.23,0.04036561]
[1748429430338,4.27593561,174.26,174.23,0.04036561]
[1748429430639,10.01293561,174.24,174.23,0.04036561]
[1748429431932,5.737,174.24,174.23,0.04036561]
[1748429434140,28.62,174.3,174.23,0.04036561]
[1748429434439,4.27593561,174.28,174.23,0.04036561]
[1748429434639,5.7366,174.26,174.23,0.04036561]
[1748429435237,28.62,174.3,174.23,0.04036561]
[1748429435539,4.27593561,174.29,174.23,0.04036561]
[1748429435935,28.62,174.3,174.23,0.04036561]
[1748429437046,28.62,174.3,174.23,5.77746561]
[1748429437450,5.7363,174.27,174.23,5.77746561]
[1748429437656,28.62,174.3,174.24,5.7367]
[1748429437851,28.62,174.3,174.23,0.04036561]
[1748429438150,5.736,174.28,174.23,0.04036561]
[1748429438352,5.736,174.28,174.24,5.7368]
[1748429438850,5.736,174.27,174.24,5.7368]
[1748429439249,5.736,174.27,174.25,5.7367]
[1748429439553,5.736,174.27,174.23,0.04036561]
[1748429439948,5.736,174.27,174.24,5.7368]
[1748429440159,28.62,174.3,174.23,0.04036561]
[1748429440542,28.62,174.3,174.23,5.77746561]
[1748429440749,28.62,174.3,174.23,0.04036561]
[1748429442149,5.7369,174.25,174.23,0.04036561]
[1748429442751,5.7365,174.26,174.23,5.77766561]
[1748429444254,28.62,174.3,174.23,0.04036561]
[1748429444255,5.7367,174.25,174.23,0.04036561]
[1748429445360,5.7367,174.25,174.23,5.77766561]
[1748429445558,5.7364,174.26,174.23,5.77766561]
[1748429445856,28.62,174.3,174.23,5.77766561]
[1748429446160,5.7368,174.25,174.23,0.04036561]
[1748429447454,5.7368,174.25,174.23,5.77766561]
[1748429448255,28.62,174.3,174.24,5.7369]
[1748429449052,1.9631,174.32,174.23,0.04036561]
[1748429450459,5.7359,174.28,174.25,5.7367]
[1748429450662,5.7359,174.28,174.25,5.77336659]
[1748429453353,5.7356,174.29,174.26,5.7363]
[1748429453554,1.9631,174.32,174.25,0.03666659]
[1748429454160,5.7352,174.3,174.27,5.736]
[1748429454560,5.7358,174.28,174.25,0.03666659]
[1748429455173,5.7362,174.27,174.25,0.03666659]
[1748429456075,5.7358,174.28,174.25,0.03666659]
[1748429456567,5.7358,174.28,174.25,5.77316659]
[1748429457468,5.7358,174.28,174.26,5.7363]
[1748429457661,5.736,174.27,174.25,0.03666659]
[1748429458262,5.7358,174.28,174.25,0.03666659]
[1748429459170,5.7358,174.28,174.25,5.77296659]
[1748429459655,4.26461198,174.31,174.26,5.7361]
[1748429459854,4.26461198,174.29,174.27,0.03844978]
[1748429460062,5.7357,174.28,174.27,0.03844978]
[1748429461166,32.84461198,174.29,174.21,28.62]
[1748429461361,4.26461198,174.22,174.14,3.958]
[1748429461555,10.00311198,174.2,174.15,28.58]
[1748429461762,28.58,174.24,174.15,28.58]
[1748429461966,4.26461198,174.2,174.15,28.58]
[1748429462170,4.26461198,174.2,174.16,0.04240954]
[1748429462171,5.78015177,174.19,174.16,0.04240954]
[1748429462970,0.04145177,174.19,174.16,5.78200954]
[1748429463171,0.04145177,174.19,174.16,0.04240954]
[1748429463574,5.78035177,174.19,174.16,5.78200954]
[1748429463877,0.04145177,174.19,174.16,0.04240954]
[1748429464068,5.7393,174.18,174.16,0.04240954]
[1748429465176,0.04145177,174.19,174.16,0.04240954]
[1748429466476,5.739,174.18,174.16,0.04240954]
[1748429466973,0.04145177,174.19,174.16,0.04240954]
[1748429467279,5.7393,174.17,174.16,0.04240954]
[1748429467776,5.7405,174.14,174.09,32.552]
[1748429467978,28.6,174.22,174.09,39.22247349]
[1748429468280,5.7392,174.18,174.14,5.7401]
[1748429468464,5.7392,174.18,174.09,39.22247349]
[1748429468668,0.04044432,174.15,174.12,0.04039053]
[1748429468873,0.04044432,174.15,174.14,5.7403]
[1748429472374,0.04044432,174.15,174.13,28.58]
[1748429472777,0.04044432,174.15,174.12,0.04039053]
[1748429472978,5.78064432,174.15,174.12,0.04039053]
[1748429473680,5.78064432,174.15,174.12,5.78109053]
[1748429473983,5.78064432,174.15,174.12,0.04039053]
[1748429474585,0.04044432,174.15,174.13,5.7406]
[1748429475173,0.04044432,174.15,174.14,5.7403]
[1748429476285,0.04044432,174.15,174.13,5.7405]
[1748429476482,0.04044432,174.15,174.12,0.04039053]
[1748429477083,0.04044432,174.15,174.13,5.7403]
[1748429478990,0.04044432,174.15,174.14,5.7403]
[1748429481290,0.04044432,174.15,174.12,5.78119053]
[1748429481486,0.04044432,174.15,174.12,0.04039053]
[1748429481881,5.7405,174.14,174.12,0.04039053]
[1748429482086,0.04044432,174.15,174.12,0.04039053]
[1748429482483,5.7406,174.13,174.12,0.04039053]
[1748429482785,0.04044432,174.15,174.12,0.04039053]
[1748429482987,5.7405,174.14,174.12,0.04039053]
[1748429486087,5.7406,174.13,174.12,0.04039053]
[1748429486491,0.04044432,174.15,174.12,0.04039053]
[1748429487291,0.04044432,174.15,174.13,5.7403]
[1748429489390,0.04044432,174.15,174.14,5.7403]
[1748429493993,28.6,174.21,174.18,5.7389]
[1748429493994,5.7384,174.2,174.18,5.7389]
[1748429495593,5.77698486,174.21,174.18,5.7389]
[1748429495991,0.03888486,174.21,174.18,5.7389]
[1748429496394,5.7385,174.2,174.17,5.77795393]
[1748429496999,5.7387,174.19,174.17,5.77795393]
[1748429497400,0.03888486,174.21,174.17,5.77795393]